Cogmind - Beta 13 *** ADVENTURER MODE // 2024.04.05 @ 12:50:27 Player: ActualDio Result: Self-destructed Performance ------------- Evolutions (2) 1000 Regions Visited (7) 1400 Robots Destroyed (48) 240 Value Destroyed (1267) 1267 Prototype IDs (24) 480 Alien Tech Used (0) 0 Bonus (315) 315 TOTAL SCORE: 4702 Bonus ------- High Alert Combat Kills 15 Aligned with FarCom 300 Cogmind --------- Core Integrity 514/550 Matter 230/300 Energy 100/100 System Corruption 0% Temperature Cool (0) Movement Walking (100) Location -8/Materials Parts ------- > --- POWER (1) -------- (None) > --- PROPULSION (4) --- Advanced Treads Carbon-fiber Leg Potential Leg Potential Leg > --- UTILITY (4) ------ High-capacity Storage Unit Signal Interpreter Hacking Suite > --- WEAPON (2) ------- Heavy Assault Rifle Enhanced Autogun > --- INVENTORY (20) --- Carbon-fiber Leg Carbon-fiber Leg Armored Wheel Armored Wheel Armored Wheel Armored Wheel Armored Wheel Light Armor Plating Small Laser Particle Cannon Heavy Assault Rifle High-powered Shotgun Rocket Launcher Rocket Launcher Mini Grenade Launcher Mining Laser Peak State ------------ > --- POWER ------------ Ion Engine > --- PROPULSION ------- Advanced Treads Carbon-fiber Leg Potential Leg Potential Leg > --- UTILITY ---------- High-capacity Storage Unit Signal Interpreter Medium Armor Plating Hacking Suite > --- WEAPON ----------- Heavy Assault Rifle Enhanced Autogun > --- INVENTORY -------- Carbon-fiber Leg Carbon-fiber Leg Armored Wheel Armored Wheel Armored Wheel Armored Wheel Armored Wheel Light Armor Plating Small Laser Particle Cannon Heavy Assault Rifle High-powered Shotgun Rocket Launcher Rocket Launcher Mini Grenade Launcher Mining Laser [Rating: 43] Favorites ----------- Power Ion Engine Engine Ion Engine Propulsion Armored Wheel Treads Advanced Treads Leg Potential Leg Wheel Armored Wheel Utility High-capacity Storage Unit Storage High-capacity Storage Unit Processor Signal Interpreter Hackware Hacking Suite Protection Medium Armor Plating Weapon Heavy Assault Rifle Energy Gun Medium Laser Ballistic Gun Heavy Assault Rifle Build | -11 -10 -10 -9 -9 -9 -8 -8 ------- Run | Yrd Mat Min Mat Min Exi Min Mat Slots Evolved 4 | . . . 2 . . . 2 Power . | . . . . . . . . Propulsion 2 | . . . 2 . . . . Utility 2 | . . . . . . . 2 Weapon . | . . . . . . . . Parts Attached 43 | 6 . 5 15 1 5 4 7 Power 5 | 1 . . 3 1 . . . Engine 5 | 1 . . 3 1 . . . Core . | . . . . . . . . Reactor . | . . . . . . . . Propulsion 24 | 2 . 5 8 . 2 4 3 Treads 3 | . . . . . . 2 1 Leg 14 | . . 5 4 . 2 1 2 Wheel 7 | 2 . . 4 . . 1 . Hover . | . . . . . . . . Flight . | . . . . . . . . Utility 7 | 1 . . 2 . 1 . 3 Device . | . . . . . . . . Storage 2 | 1 . . 1 . . . . Processor 1 | . . . . . . . 1 Hackware 1 | . . . . . . . 1 Protection 3 | . . . 1 . 1 . 1 Artifact . | . . . . . . . . Weapon 7 | 2 . . 2 . 2 . 1 Energy Gun 2 | 1 . . 1 . . . . Energy Cannon . | . . . . . . . . Ballistic Gun 5 | 1 . . 1 . 2 . 1 Ballistic Cannon . | . . . . . . . . Launcher . | . . . . . . . . Special Weapon . | . . . . . . . . Impact Weapon . | . . . . . . . . Slashing Weapon . | . . . . . . . . Piercing Weapon . | . . . . . . . . Special Melee Weapon . | . . . . . . . . Unidentified Prototypes 1 | . . . . . . . 1 Parts Lost 13 | . . 2 2 6 . 1 2 Power 4 | . . 1 1 1 . . 1 Propulsion 4 | . . 1 . 2 . 1 . Utility 2 | . . . . 1 . . 1 Weapon 3 | . . . 1 2 . . . Highest Loss Streak 6 | . . 1 1 6 . 1 2 To Critical Strikes . | . . . . . . . . Average Slot Usage (%) 89 | . 85 82 92 80 66 99 98 Engine 10 | . 14 11 9 9 11 11 7 Treads 2 | . . . . . . 9 9 Leg 16 | . . 5 18 . 9 30 27 Wheel 16 | . 28 21 20 39 22 4 . Storage 12 | . 14 14 11 11 11 11 9 Protection 6 | . . . 10 6 4 11 8 Energy Gun 7 | . 14 14 11 5 . . . Ballistic Gun 15 | . 14 14 10 6 9 22 18 Naked Turns . | . . . . . . . . Heaviest Build 58 | 13 13 13 52 50 58 58 58 Greatest Support 75 | 20 20 20 49 48 60 75 75 Greatest Overweight (x) 1 | . . 1 1 1 1 . . Average Overweight (x) . | . . . . . . . . Largest Inventory Capacity 20 | 8 8 8 20 20 20 20 20 Average Capacity 14 | 7 8 8 13 20 20 20 20 Most Carried 16 | 4 2 7 14 14 15 15 16 Average Carried 9 | 2 2 4 10 13 11 13 15 Final Capacity 20 | 8 8 8 20 20 20 20 20 Final Carried 16 | 2 2 6 13 13 10 15 16 Class Distribution -------------------- 95% | Mutant 4% | Hacker-Mutant Dominant Class ---------------- Mutant | -10/Materials Mutant | -10/Mines Mutant | -9/Materials Mutant | -9/Mines Mutant | -9/Exiles Mutant | -8/Mines Hacker-Mutant | -8/Materials Resources | -11 -10 -10 -9 -9 -9 -8 -8 ----------- Run | Yrd Mat Min Mat Min Exi Min Mat Matter Collected 927 | 193 . 137 202 . . 286 109 Remotely . | . . . . . . . . Salvage Created 1525 | . . 227 789 . . 400 109 Parts 104 | . . 12 58 . . 29 5 Haulers Intercepted . | . . . . . . . . Recyclers Shooed 1 | . . . . . . . 1 Parts Field Recycled . | . . . . . . . . Retrieved Matter . | . . . . . . . . Parts Self-Destructed . | . . . . . . . . Prevented . | . . . . . . . . Kills | -11 -10 -10 -9 -9 -9 -8 -8 ------- Run | Yrd Mat Min Mat Min Exi Min Mat Combat Hostiles Destroyed 43 | . . 7 24 . . 10 2 Guns 43 | . . 7 24 . . 10 2 Classes Destroyed 9 | . . 2 4 . . 3 . Builder 1 | . . . . . . 1 . Recycler 1 | . . . . . . 1 . Operator 1 | . . . 1 . . . . Watcher 2 | . . . 2 . . . . Swarmer 19 | . . 3 10 . . 6 . Grunt 14 | . . 4 7 . . 3 . Brawler 1 | . . . 1 . . . . Sentry 8 | . . . 6 . . . 2 Hunter 1 | . . . . . . 1 . Best Kill Streak 10 | . . 3 10 . . 6 2 Combat Bots Only 10 | . . 3 10 . . 6 2 Max Kills in Single Turn 2 | . . 1 2 . . 2 1 Gunslinging 1 | . . . 1 . . . . Exploded . | . . . . . . . . Melee . | . . . . . . . . Uniques/NPCs Destroyed . | . . . . . . . . Combat | -11 -10 -10 -9 -9 -9 -8 -8 -------- Run | Yrd Mat Min Mat Min Exi Min Mat Hostile Shots Fired 365 | . 5 39 164 31 . 84 42 Missed 113 | . . 12 51 10 . 28 12 Damage Taken 2442 | . 77 237 991 326 . 499 312 Core 427 | . 18 47 229 81 . 16 36 Absorbed by Shields . | . . . . . . . . Redirected to Shielding 49 | . . . 27 22 . . . Ignored by Resistances 734 | . 24 74 302 90 . 153 91 Core Remaining (%) 64 | 100 . 74 . . . 18 . Volleys Fired 141 | . 2 22 69 1 . 30 17 Largest 2 | . 2 2 2 2 . 2 2 Hottest 83 | . 70 70 83 83 . 46 48 Shots Fired 263 | . 4 44 119 2 . 60 34 Gun 263 | . 4 44 119 2 . 60 34 Cannon . | . . . . . . . . Launcher . | . . . . . . . . Special . | . . . . . . . . Kinetic 184 | . 2 22 65 1 . 60 34 Thermal 79 | . 2 22 54 1 . . . Explosive . | . . . . . . . . Electromagnetic . | . . . . . . . . Robot Hit Streak 30 | . 3 17 30 5 . 27 13 Robot Miss Streak 2 | . 1 2 2 1 . 2 1 Penetration Max . | . . . . . . . . Secondary Targets 7 | . . 1 2 . . 3 1 Max Gunslinging Chain 1 | . . 1 1 . . 1 1 Shots Hit Robots 216 | . 3 38 102 1 . 43 29 Core Hits 90 | . 1 16 48 . . 20 5 Critical Kills . | . . . . . . . . Critical Parts Destroyed . | . . . . . . . . Critical Strikes 5 | . . . 5 . . . . Burn 4 | . . . 4 . . . . Destroy 1 | . . . 1 . . . . Melee Attacks . | . . . . . . . . Impact . | . . . . . . . . Slashing . | . . . . . . . . Piercing . | . . . . . . . . Sneak Attacks . | . . . . . . . . Combat Hostiles . | . . . . . . . . Follow-up Attacks . | . . . . . . . . Damage Inflicted 2810 | . 8 416 1260 6 . 684 436 Guns 2698 | . 8 397 1251 6 . 600 436 Cannons . | . . . . . . . . Explosions . | . . . . . . . . Melee . | . . . . . . . . Ramming 112 | . . 19 9 . . 84 . Kinetic 1666 | . 8 160 456 6 . 600 436 Thermal 1032 | . . 237 795 . . . . Explosive . | . . . . . . . . Electromagnetic . | . . . . . . . . Impact . | . . . . . . . . Slashing . | . . . . . . . . Piercing . | . . . . . . . . Highest Corruption 1 | . 1 1 1 1 1 1 . Average Corruption 1 | . 1 1 1 1 1 1 . Corruption Purged . | . . . . . . . . Corruption Blocked . | . . . . . . . . Effects 19 | . . 6 5 1 1 6 . Message Errors 5 | . . 1 1 1 . 2 . Matter Fused 5 | . . 1 1 . 1 2 . Heat Flow Errors 3 | . . 2 1 . . . . Energy Discharges 3 | . . 1 2 . . . . Data Loss (minor) 2 | . . 1 . . . 1 . Data Loss (major) 1 | . . . . . . 1 . Overload Shots . | . . . . . . . . Overflow Damage 17 | . . . . . . 17 . Projectiles . | . . . . . . . . Explosions . | . . . . . . . . Melee 17 | . . . . . . 17 . Knockbacks . | . . . . . . . . Impact . | . . . . . . . . Kinetic . | . . . . . . . . Secondary . | . . . . . . . . Self-Inflicted Damage 37 | . 32 5 . . . . . Shots 1 | . 1 . . . . . . Rammed 1 | . . 1 . . . . . Targets Rammed 9 | . . 2 2 . . 5 . Kicked 8 | . . 1 2 . . 5 . Crushed . | . . . . . . . . Highest Temperature 386 | . 45 152 386 36 . 24 23 Average Temperature 83 | . 25 72 107 22 . 10 8 Received Heat Transfer 918 | . 36 156 372 84 . 117 153 Effects 2 | . . . 2 . . . . Interference 2 | . . . 2 . . . . Siege Activations . | . . . . . . . . Robots Corrupted . | . . . . . . . . Combat Hostiles . | . . . . . . . . Parts Fried . | . . . . . . . . Impact Corruptions 1 | . . . . . . 1 . Robots Melted . | . . . . . . . . Combat Hostiles . | . . . . . . . . Parts Melted 4 | . . 1 3 . . . . Heat Transferred 2775 | . . 703 2072 . . . . Parts Sabotaged . | . . . . . . . . Parts Stolen . | . . . . . . . . Parts Stripped . | . . . . . . . . Power Chain Reactions . | . . . . . . . . Alert | -11 -10 -10 -9 -9 -9 -8 -8 ------- Run | Yrd Mat Min Mat Min Exi Min Mat Peak Influence 445 | . 39 82 445 132 . 195 93 Initial 127 | . . 12 . 127 . . . Average 77 | . 6 32 192 110 . 50 27 Maximum Alert Level 2 | . . . 2 . . . . Low Security (%) 87 | 100 100 100 50 100 . 100 100 Level 1 11 | . . . 47 . . . . Level 2 . | . . . 2 . . . . Level 3 . | . . . . . . . . Level 4 . | . . . . . . . . Level 5 . | . . . . . . . . High Security . | . . . . . . . . Max Security . | . . . . . . . . Squads Dispatched 4 | . . . 2 . . . 2 Investigation 2 | . . . . . . . 2 Extermination . | . . . . . . . . Reinforcement 2 | . . . 2 . . . . Assault . | . . . . . . . . Garrison . | . . . . . . . . Intercept . | . . . . . . . . Searches Triggered . | . . . . . . . . Construction Impeded . | . . . . . . . . Haulers Reinforced . | . . . . . . . . Active Scanning Responses . | . . . . . . . . Cargo Convoy Interrupts . | . . . . . . . . Stealth | -11 -10 -10 -9 -9 -9 -8 -8 --------- Run | Yrd Mat Min Mat Min Exi Min Mat Distress Signals 5 | . . . 4 . . . 1 Communications Jammed . | . . . . . . . . Distress Signals . | . . . . . . . . Times Spotted 81 | . 4 7 38 12 . 14 6 Peak Tracking Total 13 | . 5 3 7 13 . 7 4 Tactical Retreats 5 | . . . 4 . . 1 . Traps | -11 -10 -10 -9 -9 -9 -8 -8 ------- Run | Yrd Mat Min Mat Min Exi Min Mat Traps Triggered 2 | . . . 1 . . . 1 Indirectly . | . . . . . . . . Trap Hack Attempts . | . . . . . . . . Triggered . | . . . . . . . . Disarmed . | . . . . . . . . Reprogrammed . | . . . . . . . . Reused . | . . . . . . . . Traps Extracted . | . . . . . . . . Installed . | . . . . . . . . Triggered . | . . . . . . . . Machines | -11 -10 -10 -9 -9 -9 -8 -8 ---------- Run | Yrd Mat Min Mat Min Exi Min Mat Machines Disabled 1 | . 1 . . . . . . Max in Single Turn 1 | . 1 . . . . . . Machines Repaired . | . . . . . . . . Machines Dismantled . | . . . . . . . . Machines Sabotaged . | . . . . . . . . Overloaded Fab Kills . | . . . . . . . . Hacking | -11 -10 -10 -9 -9 -9 -8 -8 --------- Run | Yrd Mat Min Mat Min Exi Min Mat Machines Accessed 9 | . . . 6 . 1 . 2 Terminals 8 | . . . 6 . . . 2 Fabricators . | . . . . . . . . Repair Stations . | . . . . . . . . Recycling Units . | . . . . . . . . Scanalyzers . | . . . . . . . . Garrison Access . | . . . . . . . . Total Hacks 35 | . . . 22 . 1 . 12 Successful 23 | . . . 15 . 1 . 7 Failed 12 | . . . 7 . . . 5 Catastrophic 1 | . . . 1 . . . . Database Lockouts . | . . . . . . . . Manual 31 | . . . 21 . 1 . 9 Terminals 34 | . . . 22 . . . 12 Fabricators . | . . . . . . . . Repair Stations . | . . . . . . . . Recycling Units . | . . . . . . . . Scanalyzers . | . . . . . . . . Garrison Access . | . . . . . . . . Terminal Hacks 11 | . . . 5 . 1 . 5 Robot Analysis 2 | . . . 1 . . . 1 Level Access Points 1 | . . . . . . . 1 Branch Access Points 2 | . . . 1 . . . 1 Terminal Index 1 | . . . . . . . 1 Zone Layout 4 | . . . 3 . . . 1 Derelict Proto ID Bank 1 | . . . . . 1 . . Fabricator Hacks . | . . . . . . . . Repair Station Hacks . | . . . . . . . . Recycling Unit Hacks . | . . . . . . . . Scanalyzer . | . . . . . . . . Garrison Access Hacks . | . . . . . . . . Unauthorized Hacks 12 | . . . 10 . . . 2 Terminals 12 | . . . 10 . . . 2 Track 6 | . . . 5 . . . 1 Botnet 6 | . . . 5 . . . 1 Fabricators . | . . . . . . . . Repair Stations . | . . . . . . . . Recycling Units . | . . . . . . . . Scanalyzers . | . . . . . . . . Garrison Access . | . . . . . . . . Data Cores Recovered . | . . . . . . . . Used . | . . . . . . . . Hacking Detections 5 | . . . 3 . . . 2 Full Trace Events 5 | . . . 3 . . . 2 Feedback Events . | . . . . . . . . Feedback Blocked . | . . . . . . . . Robot Schematics Acquired . | . . . . . . . . Robots Built . | . . . . . . . . Authchips . | . . . . . . . . Time . | . . . . . . . . Total Robot Build Rating . | . . . . . . . . Part Schematics Acquired . | . . . . . . . . Parts Built . | . . . . . . . . Authchips . | . . . . . . . . Time . | . . . . . . . . Total Part Build Rating . | . . . . . . . . Parts Repaired . | . . . . . . . . Time . | . . . . . . . . Parts Recycled . | . . . . . . . . Recycled Matter . | . . . . . . . . Retrieved Matter . | . . . . . . . . Retrieved Components . | . . . . . . . . Parts Scanalyzed . | . . . . . . . . Part Schematics Acquired . | . . . . . . . . Parts Damaged . | . . . . . . . . Bothacking | -11 -10 -10 -9 -9 -9 -8 -8 ------------ Run | Yrd Mat Min Mat Min Exi Min Mat Used RIF Installer . | . . . . . . . . Robots Hacked . | . . . . . . . . Non-combat . | . . . . . . . . Combat . | . . . . . . . . Robot Hacks Applied . | . . . . . . . . Relay Couplers Released . | . . . . . . . . Fabnet Peak Effective % . | . . . . . . . . Robots Rewired . | . . . . . . . . Allies Hacked . | . . . . . . . . Hacks Repelled . | . . . . . . . . Allies | -11 -10 -10 -9 -9 -9 -8 -8 -------- Run | Yrd Mat Min Mat Min Exi Min Mat Total Allies 1 | . . 1 . . . . . Largest Group 1 | . . 1 . . . . . Highest-Rated Group 31 | . . 31 . . . . . Highest-Rated Ally 31 | . . 31 . . . . . Total Orders . | . . . . . . . . Ally Attacks . | . . . . . . . . Total Damage . | . . . . . . . . Kills . | . . . . . . . . Allies Corrupted . | . . . . . . . . Allies Melted . | . . . . . . . . Intel | -11 -10 -10 -9 -9 -9 -8 -8 ------- Run | Yrd Mat Min Mat Min Exi Min Mat Robot Analysis Total 2 | . . . 1 . . . 1 Derelict Logs Recovered 3 | . . 3 . . . . . Drone Launches . | . . . . . . . . Drone Recoveries . | . . . . . . . . Exploration | -11 -10 -10 -9 -9 -9 -8 -8 ------------- Run | Yrd Mat Min Mat Min Exi Min Mat Turns Passed 3774 | 42 89 1276 880 80 212 1020 175 Spaces Moved 2396 | 39 105 661 581 74 209 623 104 Core 11 | 11 . . . . . . . Treads . | . . . . . . . . Legs 1314 | . . 196 298 . 93 623 104 Wheels 1071 | 28 105 465 283 74 116 . . Hover . | . . . . . . . . Flight . | . . . . . . . . Fastest Speed 50 | 50 80 80 90 90 90 90 100 Average Speed 98 | 71 80 92 113 101 98 95 100 Slowest Speed 190 | 80 80 120 190 105 105 100 100 Overloaded Moves . | . . . . . . . . Propulsion Burnouts . | . . . . . . . . Robots Hopped . | . . . . . . . . Cave-ins Triggered . | . . . . . . . . Exploration Rate (%) 45 | 4 28 101 50 14 60 96 14 Regions Visited 7 Branch Regions 4 Pre-discovered Areas . | . . . . . . . . Known Exits Taken 2 | . . . 1 . . 1 . Unknown Exits Taken 5 | 1 1 1 . 1 1 . . Scrap Searched 4 | . . 1 . . . 3 . Spaces Dug . | . . . . . . . . Terrain Destroyed . | . . . . . . . . Melee . | . . . . . . . . Projectile . | . . . . . . . . AOE . | . . . . . . . . Terrain Rammed . | . . . . . . . . Walls Destroyed . | . . . . . . . . Machines Disabled . | . . . . . . . . Actions | -11 -10 -10 -9 -9 -9 -8 -8 --------- Run | Yrd Mat Min Mat Min Exi Min Mat Total 3563 | 52 106 1288 698 76 215 983 145 Wait 926 | . . 588 8 . . 316 14 Move 2389 | 38 104 660 580 73 208 622 104 Hop . | . . . . . . . . Pick Up 43 | 8 . 8 15 1 2 6 3 Fast Attach 2 | . . . 2 . . . . Attach 20 | 6 . 1 4 1 5 1 2 Detach . | . . . . . . . . Swap 21 | . . 4 9 . . 3 5 Drop 12 | . . 3 9 . . . . Fire 141 | . 2 22 69 1 . 30 17 Melee . | . . . . . . . . Ram 1 | . . 1 . . . . . Kick 8 | . . 1 2 . . 5 . Crush . | . . . . . . . . Escape Stasis . | . . . . . . . . Rewire . | . . . . . . . . Trap . | . . . . . . . . Miscellaneous . | . . . . . . . . Route ------- -11/Scrapyard -10/Materials -10/Mines (discovered 3 exits: *Mat x2 / [*Sub]) -9/Materials (discovered 3 exits: *Mat x2 / *Min) -9/Mines -9/Exiles -8/Mines (discovered 2 exits: *Mat x2) -8/Materials (discovered 3 exits: Fac x3) History --------- Turn | Location | Event 8 | -11/Scrapyard | Discovered new exit (range 14) 43 | -11/Scrapyard | Entered Materials 126 | -10/Materials | Discovered new exit (range 6) 132 | -10/Materials | Entered Mines 147 | -10/Mines | Met a Derelict bent on vengeance 149 | -10/Mines | Learned Materials emergency access door positions 174 | -10/Mines | Learned location of 1 exit from Materials 228 | -10/Mines | Received a Mining Laser from a helpful Derelict 283 | -10/Mines | Received a Rocket Launcher from a helpful Derelict 300 | -10/Mines | Build established: Mutant 323 | -10/Mines | Learned Materials terminal intel 694 | -10/Mines | Discovered new exit (range 3) 1063 | -10/Mines | Discovered new exit (range 6) 1150 | -10/Mines | Discovered new exit (range 11) 1408 | -10/Mines | Entered Materials 1408 | -9/Materials | Evolved 2 slots: Propulsion x2 1409 | -9/Materials | Identified exit to Materials 1411 | -9/Materials | Loaded intel: 12 terminal locations 1468 | -9/Materials | Identified exit to Mines 1760 | -9/Materials | Discovered exit to Materials (range 14) 2206 | -9/Materials | Core integrity fell below 50% 2271 | -9/Materials | Destroyed 10 combat bots 2288 | -9/Materials | Entered Mines 2296 | -9/Mines | Assembled infested the area 2363 | -9/Mines | Deemed a non-threat by the Exiles lab entrance 2363 | -9/Mines | Discovered new exit (range 5) 2368 | -9/Mines | Entered Exiles 2386 | -9/Exiles | Lost 6 parts (1p2n1u2w) 2394 | -9/Exiles | Met 8R-AWN 2413 | -9/Exiles | Met EX-HEX 2445 | -9/Exiles | Met EX-BIN 2457 | -9/Exiles | Aligned with FarCom system 2458 | -9/Exiles | Given EX-Vault access code 2482 | -9/Exiles | Opened EX-Vault 2489 | -9/Exiles | Found Potential Leg 2491 | -9/Exiles | Found Potential Leg 2514 | -9/Exiles | Warned to stay clear of 0b10 Research branches 2540 | -9/Exiles | Met EX-DEC 2572 | -9/Exiles | Discovered new exit (range 10) 2580 | -9/Exiles | Left Exiles lab with Potential Leg 2580 | -9/Exiles | Entered Mines 2764 | -8/Mines | Discovered exit to Materials (range 13) 3001 | -8/Mines | Discovered exit to Materials (range 16) 3093 | -8/Mines | Core integrity fell below 20% 3600 | -8/Mines | Entered Materials 3600 | -8/Materials | Evolved 2 slots: Utility x2 3662 | -8/Materials | Identified exit to Factory 3775 | -8/Materials | Self-destructed Last Messages --------------- ALERT: Suspicious activity at Terminal M009. Dispatching Investigation squad. K-01 Serf collects debris. Y-45 Defender destroyed. Switching to secondary target: Y-45 Defender. Acquired 58 matter. Critical hit (Burn: +37). Ion Engine destroyed. Critical hit (Burn: +37). Slug penetrates Wall. Destroyed Lgt. Armor Plating. Critical hit (Burn: +37). Slug penetrates Wall. Y-45 Defender destroyed. Slug penetrates Wall. Med. Armor Plating destroyed. R-06 Scavenger distress signal alerts nearby ally. Acquired 51 matter. Slug penetrates Wall. Map ----- +----------------------------------------------------+ | ???????????=??????????# # """ "#??? | | ??????????? ????????# # """ T#??? | | ?????????? ####### + """ "#??? | | ?????????? # k #??? | | ?????????? # [ #??? | | ?????????? ########??? | | ??????????? #######+### #?????????? | | ????????????????? ## #?????????? | | ????????????????? ## #?????????? | | ????????????????? ## #?????????? | | ????????????????? ## ########### | | ????????????????? ## ## # | | ????????????????? ## ## """ # | | ?????????????????##### # """ # | | ???????????????####### T # """ # | | ???????????????+ "" + # | | ???????????????####### # """ # | | ?????????????????????# # """ # | | ?????????????????????### ### """ # | | ???????????????????????# #?# # | | ???????????????????????# #?#########? | | ???????????????????????# ########???? | | ???????????????????????# # #???? | | ????????????????######## # """ #???? | | ????????????????# ! #h#[ """ #???? | | ????????????????# +=@ =""" #???? | | ????????????????# #w# #???? | | ????????????????# """ !#h# #???? | | ????????????????# """ # ########???? | | ????????????????# """ # #??????????? | | ????????????????######## #??????????? | | ???????????????????????# #??????????? | | ???????????????????????# #??????????? | | ???????????????????????# #??????????? | | ???????????????????????? ???????????? | | ???????????????????????? ???????????? | | ????????????????????????w???????????? | | ???????????????????????? ???????????? | | ???????????????????????? ???????????? | | ???????????????????????? ???????????? | | ???????????????????????? ???????????? | | ????????????????????????????????????? | | ????????????????????????????????????? | | ????????????????????????????????????? | | ????????????????????????????????????? | | ????????????????????????????????????? | | ????????????????????????????????????? | | ????????????????????????????????????? | | ????????????????????????????????????? | | ????????????????????????????????????? | +----------------------------------------------------+ Best States ------------- Heat Dissipation 31 Energy Generation 12 Energy Capacity 265 Matter Stores 300 Matter Capacity 300 Sight Range 16 Terrain Scan Density 10 Armor Coverage 225 Resistance: KI 20 Resistance: TH 20 Resistance: EX 20 Resistance: EM 20 Resistance: I 20 Resistance: S 20 Resistance: P 20 Power Shielding 33 Evasion (%) 57 Offensive Hacking 20 Item Schematics ----------------- None Robot Schematics ------------------ None Fabricated ------------ Nothing Alien Tech Used ----------------- None Achievements -------------- None Challenges ------------ None Game ------ Seed ActiveSmallPendant Manual? 0 Play Time 00:27:27 Cumulative 17.9 hours Start 2024.04.05 @ 12:24:47 End 2024.04.05 @ 12:50:27 Sessions 1 Manual Loads 0 Difficulty Adventurer Special Mode None Game No. 23 Rogue 0 Adventurer 23 Explorer 0 Win Type - Total 0 Types 0/0/0/0/0/0/0/0/0 Lore% 23 Gallery% 26 Achievement% 17 Wizard Run 0 Options --------- Layout 1 ASCII 0 Keyboard 0 Movement Mouse Keybinds 0 Fullscreen 1 Font 24/Smallcaps Map View 50x35 Zoom Use 0% Tactical HUD 0 Map Filters NONE Filters NONE Steam 0 RUN: 25ef7a55-32f1-4c39-9143-341d42ff8562